[Event "98th Caplin Hastings Masters 2024-25"]
[Site "Hastings"]
[Date "2024.12.31"]
[Round "5.7"]
[White "Gormally, Daniel W"]
[Black "Bozinakis, Pavlos"]
[Result "1/2-1/2"]
[ECO "D27"]
[WhiteElo "2424"]
[BlackElo "2271"]
[Annotator "TA"]
[PlyCount "47"]
[EventDate "2024.12.23"]
[EventType "swiss"]
[EventCountry "ENG"]
[SourceTitle "playchess.com"]
[Source "ChessBase"]
[SourceQuality "1"]
[TimeControl "5400+30"]

{[%evp 21,47,0,8,7,13,6,138,9,5,0,5,0,0,0,0,0,0,0,0,0,0,0,0,0,0,0,0,0]} 1. d4 {[%emt 0:00:04]} Nf6 {[%emt 0:00:15]} 2. Nf3 {[%emt 0:00:08]} d5 {[%emt 0:01:12]} 3. c4 {[%emt 0:00:21]} e6 {[%emt 0:00:10]} 4. Nc3 {[%emt 0:00:10]} c5 {[%emt 0:00:24]} 5. e3 {[%emt 0:01:45]} a6 {[%emt 0:00:45]} 6. a3 {[%emt 0:03:19]} dxc4 {[%emt 0:02:24]} 7. Bxc4 {[%emt 0:00:05]} b5 {[%emt 0:00:26]} 8. Ba2 {[%emt 0:01:24]} Bb7 {[%emt 0:01:39]} 9. O-O {[%emt 0:00:55]} cxd4 {[%emt 0:04:51]} 10. exd4 {[%emt 0:04:58]} Be7 {[%emt 0:00:56]} 11. Re1 {[%emt 0:06:36]} O-O {[%emt 0:04:21]} 12. Bf4 {[%emt 0:02:07][%cal Od4d5]} Nc6 {[%emt 0:06:31]} 13. d5 {[%emt 0:03:39]} Nxd5 {[%emt 0:01:56]} (13... exd5 $11 {keeps the balance.} 14. Nxd5 Nxd5 15. Bxd5 (15. Qxd5 Qxd5 16. Bxd5 Bf6 $18) 15... Bf6) 14. Nxd5 {[%emt 0:00:28]} ({White must play} 14. Bxd5 $16 exd5 15. Nxd5) 14... exd5 $11 {[%emt 0:00:11]} 15. Bxd5 {[%emt 0:00:06] next Be4 is good for White.} Bf6 {[%emt 0:03:07]} 16. Bd6 {[%emt 0:14:48][%cal Oa1c1] and Rc1! would now be decisive} Re8 $1 {[%emt 0:03:55]} 17. Bxf7+ {[%emt 0:04:47]} Kxf7 {[%emt 0:00:22]} 18. Qd5+ {[%emt 0:00:58]} Kg6 {[%emt 0:00:14] and ...Qd7 would now be decisive} 19. Rxe8 {[%emt 0:07:16]} Qxe8 {[%emt 0:00:19]} 20. g4 {[%emt 0:05:55][%csl Gg4][%cal Rd5h5]} h6 $1 {[%emt 0:07:28]} ({Weaker is} 20... Bxb2 21. Qh5+ Kf6 22. Qf5#) 21. Re1 {[%emt 0:05:57]} Qd7 {[%emt 0:05:04]} 22. Qe4+ {[%emt 0:02:15]} Kf7 {[%emt 0:00:14]} 23. Qd5+ {[%emt 0:00:04]} Kg6 {[%emt 0:00:12]} 24. Qe4+ {[%emt 0:02:29]} 1/2-1/2

[Event "98th Caplin Hastings Masters 2024-25"]
[Site "Hastings"]
[Date "2024.12.31"]
[Round "5.8"]
[White "Kolka, David"]
[Black "Steiners, Emils"]
[Result "0-1"]
[ECO "B22"]
[WhiteElo "2020"]
[BlackElo "2209"]
[Annotator "NA RC"]
[PlyCount "94"]
[EventDate "2024.12.23"]
[EventType "swiss"]
[EventCountry "ENG"]
[SourceTitle "playchess.com"]
[Source "ChessBase"]
[SourceQuality "1"]
[TimeControl "5400+30"]

1. e4 {[%emt 0:04:51]} c5 {[%emt 0:00:16]} 2. Nf3 {[%emt 0:00:30]} Nc6 {[%emt 0:00:13]} 3. c3 {[%emt 0:00:11]} Nf6 {[%emt 0:00:13]} 4. e5 {[%emt 0:00:04]} Nd5 {[%emt 0:00:17]} 5. Bc4 {[%emt 0:00:15]} Nb6 {[%emt 0:00:24]} 6. Bb3 {[%emt 0:00:07]} d5 {[%emt 0:00:44]} 7. exd6 {[%emt 0:00:06]} Qxd6 {[%emt 0:00:27]} 8. O-O {[%emt 0:00:08]} Be6 {[%emt 0:02:06]} 9. Bxe6 {[%emt 0:00:09]} Qxe6 {[%emt 0:00:58]} 10. Re1 {[%emt 0:00:05]} Qd7 {[%emt 0:09:04]} 11. a4 {[%emt 0:05:58]} e6 {[%emt 0:06:38]} 12. a5 {[%emt 0:02:36]} Nd5 {[%emt 0:04:13]} 13. a6 {[%emt 0:03:11]} b6 {[%emt 0:07:22]} 14. d4 {[%emt 0:15:41]} cxd4 {[%emt 0:01:29]} 15. Nxd4 {[%emt 0:00:33]} Be7 {[%emt 0:12:29]} 16. Na3 {[%emt 0:08:59]} Nxd4 {[%emt 0:18:11]} 17. Qxd4 {[%emt 0:01:00]} Bf6 {[%emt 0:00:57]} 18. Qd3 {[%emt 0:03:28]} Rd8 {[%emt 0:03:09]} 19. Nb5 {[%emt 0:19:33]} O-O {[%emt 0:04:22]} 20. Ra4 {[%emt 0:02:53]} Qc6 {[%emt 0:10:24]} 21. Qc4 {[%emt 0:02:08]} Qa8 {[%emt 0:01:33]} 22. h4 {[%emt 0:08:14]} h6 {[%emt 0:02:39]} 23. Qg4 {[%emt 0:06:18]} Kh7 {[%emt 0:01:58]} 24. Bg5 {[%emt 0:05:53]} g6 {[%emt 0:09:49]} 25. Bc1 {[%emt 0:06:35]} Bg7 {[%emt 0:00:30]} 26. Qe2 {[%emt 0:03:18]} Rd7 {[%emt 0:01:14]} 27. Rc4 {[%emt 0:00:32]} Qb8 {[%emt 0:01:11]} 28. g3 {[%emt 0:00:12]} Rfd8 {[%emt 0:00:43]} 29. h5 {[%emt 0:00:24]} gxh5 {[%emt 0:00:43]} 30. Qxh5 {[%emt 0:00:19]} Nf6 {[%emt 0:00:12]} 31. Qh4 {[%emt 0:00:08]} Rd1 {[%emt 0:00:25]} 32. Kf1 {[%emt 0:00:29]} Rxe1+ {[%emt 0:00:06]} 33. Kxe1 {[%emt 0:00:01]} Qe5+ {[%emt 0:00:11]} 34. Be3 {[%emt 0:00:56]} Qxb5 {[%emt 0:00:34]} 35. Bxh6 {[%emt 0:00:03]} Qe5+ {[%emt 0:00:56]} 36. Be3+ {[%emt 0:00:17]} Kg8 {[%emt 0:00:17]} 37. Rg4 {[%emt 0:00:35]} Nxg4 {[%emt 0:01:03]} 38. Qxd8+ {[%emt 0:00:05]} Bf8 {[%emt 0:00:03]} 39. Qd4 {[%emt 0:01:49]} Qxd4 {[%emt 0:00:26]} 40. Bxd4 {[%emt 0:00:04]} Bc5 {[%emt 0:00:06]} 41. Bxc5 {[%emt 0:00:43]} bxc5 {[%emt 0:00:01]} 42. b4 {[%emt 0:00:44]} cxb4 {[%emt 0:00:10]} 43. cxb4 {[%emt 0:00:02]} Ne5 {[%emt 0:00:08]} 44. Kd2 {[%emt 0:00:08]} Kf8 {[%emt 0:00:25]} 45. f4 {[%emt 0:01:43]} Nd7 {[%emt 0:00:16]} 46. Ke3 {[%emt 0:00:32]} Ke7 {[%emt 0:00:13]} 47. Ke4 {[%emt 0:00:21]} f5+ {[%emt 0:00:29]} 0-1

[Event "98th Caplin Hastings Masters 2024-25"]
[Site "Hastings"]
[Date "2024.12.31"]
[Round "5.9"]
[White "Waldhausen Gordon, Frederick"]
[Black "Struck, Lasse"]
[Result "1-0"]
[ECO "E47"]
[WhiteElo "2355"]
[BlackElo "1983"]
[Annotator "TA"]
[PlyCount "71"]
[EventDate "2024.12.23"]
[EventType "swiss"]
[EventCountry "ENG"]
[SourceTitle "playchess.com"]
[Source "ChessBase"]
[SourceQuality "1"]
[TimeControl "5400+30"]

{[%evp 13,71,39,54,52,58,51,64,39,46,31,32,28,16,14,31,13,17,-43,-3,-45,-32,-45,-36,-44,-24,-28,-22,-30,235,257,239,222,229,233,234,198,334,297,380,374,426,482,445,450,433,452,520,508,507,520,507,519,670,532,825,826,831,825,789,800]} 1. d4 {[%emt 0:00:01]} Nf6 {[%emt 0:00:10]} 2. c4 {[%emt 0:00:05]} e6 {[%emt 0:00:06][%cal Be7e6,Be6e5][%mdl 32]} 3. Nc3 {[%emt 0:00:02]} Bb4 {[%emt 0:00:13]} 4. e3 {[%emt 0:00:04]} O-O {[%emt 0:00:26]} 5. Bd3 {[%emt 0:00:03]} d6 {[%emt 0:03:44]} 6. Nge2 {[%emt 0:01:51]} e5 {[%emt 0:04:16]} 7. O-O {[%emt 0:00:52]} c6 {[%emt 0:01:27]} 8. a3 {[%emt 0:03:23]} Ba5 {[%emt 0:00:36]} 9. b4 {[%emt 0:01:09]} Bc7 {[%emt 0:00:36]} 10. Bb2 {[%emt 0:02:21] White is more active.} Re8 {[%emt 0:05:26]} 11. dxe5 {[%emt 0:02:40]} dxe5 {[%emt 0:00:24]} 12. Ng3 {[%emt 0:00:18]} a5 {[%emt 0:09:20]} 13. Qe2 {[%emt 0:06:41]} Qe7 {[%emt 0:06:50]} 14. c5 {[%emt 0:10:07]} Be6 {[%emt 0:04:36]} 15. e4 {[%emt 0:14:46]} ({White should try} 15. Nce4 $11) 15... Nbd7 {[%emt 0:07:54]} 16. Bc4 {[%emt 0:05:30]} g6 {[%emt 0:02:40]} 17. Rfd1 {[%emt 0:04:05][%cal Oc3d5]} b6 {[%emt 0:04:48]} 18. b5 {[%emt 0:07:35][%cal Bb4b5,Bb5c6][%mdl 32]} Qxc5 {[%emt 0:09:45]} (18... bxc5 $6 19. bxc6 Nb6 20. Bxe6 Qxe6 21. Qb5 $11) 19. Bxe6 {[%emt 0:00:23]} Rxe6 {[%emt 0:00:08]} 20. Rac1 {[%emt 0:01:03][%cal Oc3d5]} Qe7 $2 {[%emt 0:02:39][%mdl 8192] [#]} (20... Bd8 $11) 21. bxc6 $1 $18 {[%emt 0:01:31]} Nc5 {[%emt 0:01:19][%cal Oe7e8]} 22. Nd5 {[%emt 0:00:55]} Nxd5 {[%emt 0:05:29]} 23. exd5 {[%emt 0:00:08]} Rf6 {[%emt 0:00:09]} 24. Rc4 {[%emt 0:08:36]} Bd6 {[%emt 0:04:39]} (24... Re8 {was worth a try.} 25. Rg4 Rd8) 25. Re1 {[%emt 0:03:51]} b5 {[%emt 0:03:11][%cal Bb6b5,Bb5b4,Bb4b3][%mdl 32]} 26. Rc2 {[%emt 0:01:00][%cal Rb2e5]} b4 {[%emt 0:01:55]} 27. Bxe5 {[%emt 0:06:17]} Bxe5 {[%emt 0:00:20]} 28. Qxe5 {[%emt 0:00:19]} Qxe5 {[%emt 0:00:12]} 29. Rxe5 {[%emt 0:00:10]} Nd3 {[%emt 0:00:55]} 30. Re3 {[%emt 0:00:29]} (30. Ne4 b3 31. Nxf6+ Kg7 $16) 30... b3 {[%emt 0:03:01]} 31. Rc3 {[%emt 0:00:24]} Nf4 {[%emt 0:08:08]} 32. Ne4 {[%emt 0:01:40]} (32. Rxb3 Nxd5 33. Red3 Nc7 $16) 32... Rf5 {[%emt 0:00:26]} 33. c7 {[%emt 0:02:08]} Rc8 {[%emt 0:02:34]} 34. d6 {[%emt 0:00:18][%cal Od6d7]} ({Worse is} 34. Rxb3 Rxc7 35. Re1 (35. Rb8+ Kg7 $11) 35... Nxd5 $11) 34... Kg7 {[%emt 0:03:25]} 35. Rxb3 {[%emt 0:00:13] Strongly threatening Rb8.} Rd5 {[%emt 0:00:15]} 36. h3 {[%emt 0:00:24]} 1-0

[Event "98th Caplin Hastings Masters 2024-25"]
[Site "Hastings"]
[Date "2024.12.31"]
[Round "5.10"]
[White "Golding, Alex"]
[Black "Bilandzic, Ante"]
[Result "1/2-1/2"]
[ECO "B13"]
[WhiteElo "2405"]
[BlackElo "1912"]
[Annotator "TA"]
[PlyCount "82"]
[EventDate "2024.12.23"]
[EventType "swiss"]
[EventCountry "ENG"]
[SourceTitle "playchess.com"]
[Source "ChessBase"]
[SourceQuality "1"]
[TimeControl "5400+30"]

{[%evp 11,82,-6,0,-19,4,9,13,5,16,6,16,0,0,0,0,0,0,8,10,0,16,6,20,19,28,19,15,27,24,21,35,0,8,9,0,0,9,0,18,14,33,0,27,6,26,31,17,3,10,6,2,16,13,9,9,6,3,-13,-18,-22,-25,-15,-16,-67,-64,-55,-58,-102,0,-9,0,-94,0]} 1. e4 {[%emt 0:00:04]} c6 {[%emt 0:00:03]} 2. d4 {[%emt 0:00:19]} d5 {[%emt 0:00:03]} 3. exd5 {[%emt 0:00:27]} cxd5 {[%emt 0:00:05]} 4. Nf3 {[%emt 0:00:05]} Nc6 {[%emt 0:00:11]} 5. Bd3 {[%emt 0:01:14]} Bg4 {[%emt 0:01:01]} 6. c3 {[%emt 0:00:19]} Qc7 {[%emt 0:00:50]} 7. Be3 {[%emt 0:00:37]} Nf6 {[%emt 0:02:57]} 8. Nbd2 {[%emt 0:00:15]} e6 {[%emt 0:01:55]} 9. O-O {[%emt 0:01:01]} Be7 {[%emt 0:00:02]} 10. Qc2 {[%emt 0:01:13][%cal Of3e5]} O-O {[%emt 0:00:22]} 11. a4 {[%emt 0:00:32]} Rac8 {[%emt 0:00:38][%cal Oc6b4]} 12. Qb1 {[%emt 0:00:42]} a6 {[%emt 0:03:57]} 13. Re1 {[%emt 0:00:18]} Rfe8 {[%emt 0:00:03]} 14. Bg5 {[%emt 0:02:59]} h6 {[%emt 0:01:18]} 15. Bh4 {[%emt 0:00:06]} Bxf3 {[%emt 0:02:04]} 16. Nxf3 {[%emt 0:00:08]} Nh5 {[%emt 0:09:34]} 17. Bxe7 {[%emt 0:00:28]} Rxe7 {[%emt 0:00:23]} 18. Qd1 {[%emt 0:00:36]} Nf6 {[%emt 0:04:22]} 19. Rc1 {[%emt 0:08:51][%cal Ba1c1,Bc1c2,Bc2e2][%mdl 32]} e5 {[%emt 0:02:58]} 20. dxe5 {[%emt 0:00:06]} Nxe5 {[%emt 0:00:10]} 21. Nd4 {[%emt 0:02:38]} g6 {[%emt 0:01:27]} 22. g3 {[%emt 0:05:21]} Rce8 {[%emt 0:02:28]} 23. Bf1 {[%emt 0:02:53]} Kg7 {[%emt 0:02:04]} 24. Rc2 {[%emt 0:00:36]} Qc5 {[%emt 0:05:30]} 25. Rce2 {[%emt 0:00:44]} Qc7 {[%emt 0:11:19]} 26. Qb3 {[%emt 0:05:50]} Qd7 {[%emt 0:02:13]} 27. Qc2 {[%emt 0:14:08]} Nc4 {[%emt 0:03:11]} 28. Rxe7 {[%emt 0:03:16]} Rxe7 {[%emt 0:00:06]} 29. Rd1 {[%emt 0:00:11]} Qc7 {[%emt 0:02:51]} 30. Ne2 {[%emt 0:05:12]} Qb6 {[%emt 0:03:53]} 31. b3 {[%emt 0:00:25]} Ne3 {[%emt 0:01:50]} 32. fxe3 {[%emt 0:00:40]} Qxe3+ {[%emt 0:00:06]} 33. Kg2 {[%emt 0:00:16]} Ng4 $1 $40 {[%emt 0:00:51][%mdl 128] ( -> ...Qf2+) Black mounts an attack.} 34. Nf4 {[%emt 0:03:14] [#]} (34. Rxd5 Qf2+ 35. Kh3 Qxf1+ (35... Ne3 $2 36. Qd1 $19) 36. Kxg4 Rxe2 37. Qd3 h5+ (37... f5+ $2 38. Rxf5 gxf5+ 39. Qxf5 $19)) 34... Qxf4 $1 {[%emt 0:01:42]} 35. gxf4 {[%emt 0:02:39]} Ne3+ {[%emt 0:00:05]} 36. Kf2 {[%emt 0:07:57]} Nxc2 {[%emt 0:00:05]} 37. Be2 {[%emt 0:04:26] [#]} (37. Rxd5 $11 Ne3 38. Rd8) 37... d4 $1 $15 {[%emt 0:04:37]} 38. cxd4 {[%emt 0:05:32]} Ne3 $1 {[%emt 0:00:59]} (38... Re4 39. Bd3 Rxf4+ (39... Rxd4 $2 40. Bxc2 Rxf4+ 41. Ke3 $18) 40. Kg3 $18) 39. Re1 {[%emt 0:00:54] [#]} Nc2 {[%emt 0:02:06]} (39... Nf5 $1 $17 40. Bc4 Rd7 (40... Rxe1 41. Kxe1 Nxd4 42. Kd2 $17)) 40. Rd1 $11 {[%emt 0:00:05]} Ne3 {[%emt 0:00:04]} (40... Re4 41. Bd3 Rxf4+ (41... Rxd4 $2 {perishes.} 42. Bxc2 Rxf4+ 43. Kg3 $18) 42. Kg3 $18) (40... Kf6 $11) 41. Re1 $1 $17 {[%emt 0:01:15] Threatens to win with Bf3.} Nc2 {[%emt 0:00:23]} (41... Nf5 $17 42. Bf3 Rc7) 1/2-1/2

[Event "98th Caplin Hastings Masters 2024-25"]
[Site "Hastings"]
[Date "2024.12.31"]
[Round "5.11"]
[White "Royal, Shreyas"]
[Black "Bin-Suhayl, Ieysaa"]
[Result "1-0"]
[ECO "C10"]
[WhiteElo "2522"]
[BlackElo "2183"]
[Annotator "TA"]
[PlyCount "129"]
[EventDate "2024.12.23"]
[EventType "swiss"]
[EventCountry "ENG"]
[SourceTitle "playchess.com"]
[Source "ChessBase"]
[SourceQuality "1"]
[TimeControl "5400+30"]

{[%evp 28,129,0,0,16,20,39,16,40,0,0,0,20,15,44,32,27,31,37,14,20,33,52,31,43,0,58,0,14,9,13,0,24,0,0,0,8,0,0,0,0,0,0,0,13,0,0,0,0,0,0,0,0,0,0,0,0,0,0,0,0,-52,81,8,32,12,26,14,779,704,29961,29965,29959,499,29951,29948,29954,29954,29959,29960,29958,29960,29960,29963,29976,29977,29977,29978,29978,29979,29979,29980,29980,29981,29981,29982,29982,29983,29983,29984,29984,29985,29986,29986]} 1. e4 {[%emt 0:00:02]} e6 {[%emt 0:03:16]} 2. d4 {[%emt 0:00:08]} d5 {[%emt 0:00:02]} 3. Nc3 {[%emt 0:00:06]} dxe4 {[%emt 0:00:03]} 4. Nxe4 {[%emt 0:00:06]} Nd7 {[%emt 0:00:03]} 5. Nf3 {[%emt 0:04:02]} Ngf6 {[%emt 0:00:04]} 6. Nxf6+ {[%emt 0:01:37]} Nxf6 {[%emt 0:00:13]} 7. Bd3 {[%emt 0:00:07]} c5 {[%emt 0:00:03]} 8. O-O {[%emt 0:00:25]} cxd4 {[%emt 0:07:07]} 9. Nxd4 {[%emt 0:00:07]} Bc5 {[%emt 0:00:44]} 10. Be3 {[%emt 0:09:55]} Bb6 {[%emt 0:19:35]} 11. Re1 {[%emt 0:06:23]} O-O {[%emt 0:07:52]} 12. Nf3 {[%emt 0:00:17]} Bxe3 {[%emt 0:11:51]} 13. Rxe3 {[%emt 0:00:08]} b6 {[%emt 0:00:41]} 14. Ne5 {[%emt 0:08:25]} Bb7 {[%emt 0:00:28]} 15. Qe2 {[%emt 0:00:15]} h6 {[%emt 0:23:46]} 16. Rg3 {[%emt 0:02:13]} Kh8 {[%emt 0:00:40]} 17. Re1 {[%emt 0:02:03]} Qd5 {[%emt 0:04:45]} 18. Bc4 {[%emt 0:16:37]} Qc5 {[%emt 0:00:39]} 19. Qd3 {[%emt 0:07:40]} Bd5 {[%emt 0:06:35]} 20. Bxd5 {[%emt 0:00:32]} Qxd5 {[%emt 0:00:14]} (20... Rad8 {seems wilder.} 21. Nxf7+ Rxf7 22. Qg6 Rdf8) 21. c4 {[%emt 0:02:07]} Qxd3 {[%emt 0:03:25]} 22. Rxd3 {[%emt 0:00:02]} Kg8 {[%emt 0:00:14]} 23. Red1 {[%emt 0:01:27]} Rfc8 {[%emt 0:00:21]} 24. b3 {[%emt 0:00:51]} g6 {[%emt 0:04:06]} 25. f3 {[%emt 0:03:03]} Kg7 {[%emt 0:00:27]} 26. b4 {[%emt 0:02:31]} Rc7 {[%emt 0:05:41]} (26... a6 $11) 27. Rd4 {[%emt 0:00:48]} (27. a4 $14) 27... Rac8 {[%emt 0:00:32]} 28. Kf2 {[%emt 0:00:19]} g5 {[%emt 0:00:15]} 29. R1d2 {[%emt 0:03:06]} Ng8 {[%emt 0:00:30]} 30. Rd8 {[%emt 0:04:24]} Rxd8 {[%emt 0:00:15]} 31. Rxd8 {[%emt 0:00:02]} f6 {[%emt 0:00:59]} 32. Rd7+ {[%emt 0:02:36]} (32. Nd3 Rxc4 33. Rd7+ Kf8 34. Rxa7 Ne7 $15) 32... Rxd7 {[%emt 0:00:02]} 33. Nxd7 {[%emt 0:00:04]} Kf7 {[%emt 0:00:06]} 34. Nb8 {[%emt 0:00:06]} Ne7 {[%emt 0:00:02]} 35. Ke3 {[%emt 0:00:43]} Ke8 {[%emt 0:00:44]} 36. Kd3 {[%emt 0:01:41]} Kd8 {[%emt 0:00:08]} 37. a4 {[%emt 0:00:03]} Kc7 {[%emt 0:00:10]} 38. Na6+ {[%emt 0:00:01]} Kd6 {[%emt 0:00:26]} 39. c5+ {[%emt 0:02:22]} bxc5 $1 {[%emt 0:00:25]} 40. Nxc5 {[%emt 0:00:07]} f5 {[%emt 0:02:30]} 41. Kc4 {[%emt 0:00:31]} Nd5 {[%emt 0:00:09]} 42. g3 {[%emt 0:01:09]} h5 {[%emt 0:00:17]} 43. Nd3 {[%emt 0:02:43]} e5 {[%emt 0:00:18]} 44. Nc5 {[%emt 0:01:09]} (44. a5 $11) 44... Nc7 {[%emt 0:00:51] [#]} (44... Nb6+ $15 {keeps the upper hand.} 45. Kb5 g4 46. fxg4 hxg4) 45. b5 {[%emt 0:00:12]} (45. g4 $1 $16 {[%cal Rg4h5]} hxg4 46. fxg4 fxg4 47. b5) 45... h4 {[%emt 0:00:29]} 46. a5 {[%emt 0:00:19]} hxg3 {[%emt 0:00:47]} 47. hxg3 {[%emt 0:00:01]} g4 $2 {[%emt 0:00:13][%mdl 8192]} (47... Ne8 $11) 48. fxg4 $18 {[%emt 0:00:19]} fxg4 {[%emt 0:00:01]} 49. Ne4+ {[%emt 0:02:32]} Ke7 {[%emt 0:00:19]} 50. Kc5 {[%emt 0:19:04]} (50. b6 $142 axb6 51. axb6 Na6 52. Nc5 Nb8 53. Kd5 e4 54. Nxe4 Na6 55. Kc6 (55. Nf2 Kd7 $18) 55... Nb8+ 56. Kb7) 50... Ne6+ {[%emt 0:00:16]} (50... Kd7 $18 51. Nf6+ Kc8 52. Nxg4 Ne6+ 53. Kc4 e4) 51. Kd5 {[%emt 0:00:00]} Nd4 {[%emt 0:00:22]} 52. b6 {[%emt 0:00:00]} (52. Kxe5 Nxb5 53. Kd5 Kd8 $16) 52... axb6 {[%emt 0:00:01]} 53. axb6 {[%emt 0:00:00]} ({Worse is} 53. Kxe5 Nf3+ 54. Kf5 bxa5 $11) 53... Kd7 {[%emt 0:00:08]} 54. Nc5+ {[%emt 0:00:00]} ({Less strong is} 54. Kxe5 Nc6+ 55. Kd5 (55. Kf5 Ne7+ 56. Ke5 Kc6 $11) 55... Ne7+ 56. Kc5 Kc8 $18) 54... Kc8 {[%emt 0:00:11]} 55. Kxe5 {[%emt 0:00:00]} Nc6+ {[%emt 0:01:54]} 56. Kf5 {[%emt 0:00:00]} Kd8 {[%emt 0:00:09]} 57. Kxg4 {[%emt 0:00:00]} Ke7 {[%emt 0:01:02]} 58. b7 {[%emt 0:00:00]} Nb8 {[%emt 0:00:05]} 59. Kf5 {[%emt 0:00:00]} Kd6 {[%emt 0:00:01]} 60. Nb3 {[%emt 0:00:00]} Kc6 {[%emt 0:00:29]} 61. Na5+ {[%emt 0:00:00]} Kb6 {[%emt 0:00:08]} 62. g4 {[%emt 0:00:00]} Kxa5 {[%emt 0:00:06]} 63. g5 {[%emt 0:00:00]} Kb6 {[%emt 0:00:13]} 64. g6 {[%emt 0:00:00]} Nd7 {[%emt 0:01:17]} 65. g7 {[%emt 0:00:00]} 1-0

[Event "98th Caplin Hastings Masters 2024-25"]
[Site "Hastings"]
[Date "2024.12.31"]
[Round "5.12"]
[White "Saunders, Aron"]
[Black "Seo, Jung Min"]
[Result "0-1"]
[ECO "B40"]
[WhiteElo "2106"]
[BlackElo "2491"]
[Annotator "TA"]
[PlyCount "56"]
[EventDate "2024.12.23"]
[EventType "swiss"]
[EventCountry "ENG"]
[SourceTitle "playchess.com"]
[Source "ChessBase"]
[SourceQuality "1"]
[TimeControl "5400+30"]

{[%evp 9,56,-1,25,20,33,27,16,0,0,0,10,0,1,0,6,7,7,-8,9,6,8,0,0,0,0,-30,-11,-45,-37,-34,-31,-25,-14,-45,-28,-44,-48,-55,-37,-131,-140,-513,-539,-510,-497,-639,-614,-613,-600]} 1. e4 {[%emt 0:00:03]} c5 {[%emt 0:00:01]} 2. Nf3 {[%emt 0:00:08]} e6 {[%emt 0:01:22]} 3. b3 {[%emt 0:00:06]} b6 {[%emt 0:00:05]} 4. Bb2 {[%emt 0:01:26]} Bb7 {[%emt 0:00:23]} 5. Nc3 {[%emt 0:03:12]} Nf6 {[%emt 0:04:36]} 6. e5 {[%emt 0:04:39]} Ne4 {[%emt 0:01:24]} 7. Nxe4 {[%emt 0:07:19]} Bxe4 {[%emt 0:00:42]} 8. Qe2 {[%emt 0:00:05]} Bf5 {[%emt 0:04:12]} (8... Bxc2 $2 {loses.} 9. d3 $18) 9. g3 {[%emt 0:03:57]} Be7 {[%emt 0:00:25][%cal Ob8c6] Prevents Nh4} 10. Bg2 {[%emt 0:00:51][%cal Of3h4] With the idea Nh4!.} Nc6 {[%emt 0:00:07]} 11. O-O {[%emt 0:02:23]} Rc8 {[%emt 0:01:20]} 12. d3 {[%emt 0:04:44]} O-O {[%emt 0:01:24]} 13. Rfe1 {[%emt 0:04:20]} d6 {[%emt 0:05:53]} 14. exd6 {[%emt 0:04:12]} Qxd6 {[%emt 0:00:20]} 15. Nd2 {[%emt 0:03:30]} Nd4 {[%emt 0:00:41]} 16. Qd1 {[%emt 0:00:08]} Rfd8 {[%emt 0:06:17]} 17. Ne4 {[%emt 0:04:20]} Qc7 {[%emt 0:00:29]} 18. c3 {[%emt 0:06:25]} Nc6 {[%emt 0:01:41]} 19. Qe2 {[%emt 0:02:31]} Rd7 {[%emt 0:01:28]} 20. Rad1 {[%emt 0:02:05]} Rcd8 {[%emt 0:01:02]} 21. Rd2 {[%emt 0:03:25]} Bg6 {[%emt 0:00:30]} 22. f4 {[%emt 0:03:36]} b5 {[%emt 0:07:02]} 23. Qe3 {[%emt 0:05:25]} Qb6 {[%emt 0:01:53]} 24. a3 {[%emt 0:03:15] [#]} (24. Nf2 $15) 24... b4 $1 $17 {[%emt 0:09:36]} 25. Rb1 $2 {[%emt 0:05:29][%mdl 8192] [#]} (25. c4 $17) 25... Rxd3 $3 $19 {[%emt 0:04:00][%mdl 512]} 26. Rxd3 {[%emt 0:00:35]} Rxd3 {[%emt 0:00:09]} 27. Qf2 {[%emt 0:00:14]} bxc3 {[%emt 0:01:10]} 28. Bxc3 {[%emt 0:01:25]} Bxe4 {[%emt 0:01:41]} 0-1